[Event "Karpov Trophy XVI 2018"]
[Site "Cap d/^Agde"]
[Date "2018.10.27"]
[Round "1.1"]
[White "Fedorchuk, Sergey A."]
[Black "Peric, Slavisa"]
[Result "1-0"]
[ECO "C07"]
[WhiteElo "2607"]
[BlackElo "2130"]
[Annotator "RC"]
[PlyCount "55"]
[EventDate "2018.10.17"]
[EventCountry "FRA"]
[SourceTitle "playchess.com"]
[Source "ChessBase"]
[SourceQuality "1"]
[TimeControl "5400+30"]

1. e4 {[%emt 0:00:00]} e6 {[%emt 0:16:57]} 2. d4 {[%emt 0:00:17]} d5 {[%emt 0:00:18]} 3. Nd2 {[%emt 0:00:49]} c5 {[%emt 0:00:07]} 4. Ngf3 {[%emt 0:00:28]} Nc6 {[%emt 0:00:49]} 5. exd5 {[%emt 0:03:29]} Qxd5 {[%emt 0:00:11]} 6. Bc4 {[%emt 0:09:50]} Qd7 {[%emt 0:00:22]} 7. dxc5 {[%emt 0:01:19]} Bxc5 {[%emt 0:00:10]} 8. Qe2 {[%emt 0:00:05]} Nf6 {[%emt 0:00:58]} 9. Nb3 {[%emt 0:00:11]} Be7 {[%emt 0:01:59]} 10. Bf4 {[%emt 0:00:50]} Qd8 {[%emt 0:04:55]} 11. Rd1 {[%emt 0:09:47]} Qb6 {[%emt 0:00:11]} 12. O-O {[%emt 0:00:05]} a6 {[%emt 0:00:40]} 13. Ne5 {[%emt 0:11:42]} Nxe5 {[%emt 0:04:08]} 14. Bxe5 {[%emt 0:00:10]} Bd7 {[%emt 0:00:15]} 15. Rd3 {[%emt 0:04:46]} Bb5 {[%emt 0:08:57]} 16. Bxb5+ {[%emt 0:01:17]} Qxb5 {[%emt 0:07:18]} 17. Nd4 {[%emt 0:00:23]} Qa5 {[%emt 0:04:16]} 18. Rb3 {[%emt 0:06:42]} Qxa2 {[%emt 0:10:47]} 19. Qf3 {[%emt 0:21:03]} O-O {[%emt 0:04:42]} 20. Qxb7 {[%emt 0:00:23]} Rfe8 {[%emt 0:16:21]} 21. Nc6 {[%emt 0:03:24]} Bf8 {[%emt 0:01:57]} 22. Bb8 {[%emt 0:02:40]} Raxb8 {[%emt 0:00:46]} 23. Nxb8 {[%emt 0:00:03]} a5 {[%emt 0:02:23]} 24. Nd7 {[%emt 0:00:26]} Nd5 {[%emt 0:01:03]} 25. Rf3 {[%emt 0:01:49]} Be7 {[%emt 0:02:33]} 26. Ne5 {[%emt 0:00:55]} Nf6 {[%emt 0:00:39]} 27. c4 {[%emt 0:01:01]} Qa4 {[%emt 0:02:10]} 28. Qc6 {[%emt 0:01:27]} 1-0

[Event "Karpov Trophy XVI 2018"]
[Site "Cap d/^Agde"]
[Date "2018.10.27"]
[Round "1.1"]
[White "Warnier, Yanis"]
[Black "Dauphin, Thomas"]
[Result "1-0"]
[ECO "D00"]
[WhiteElo "1760"]
[BlackElo "1986"]
[Annotator "NA"]
[PlyCount "75"]
[EventDate "2018.10.17"]
[EventCountry "FRA"]
[SourceTitle "playchess.com"]
[Source "ChessBase"]
[SourceQuality "1"]
[TimeControl "5400+30"]

1. d4 {[%emt 0:00:00]} d5 {[%emt 0:00:00]} 2. Bf4 {[%emt 0:00:00]} e6 {[%emt 0:00:28]} 3. Nf3 {[%emt 0:00:02]} f5 {[%emt 0:01:04]} 4. e3 {[%emt 0:00:29]} Nf6 {[%emt 0:00:25]} 5. Nbd2 {[%emt 0:00:25]} Be7 {[%emt 0:02:10]} 6. Bd3 {[%emt 0:00:57]} O-O {[%emt 0:00:10]} 7. O-O {[%emt 0:00:07]} Bd7 {[%emt 0:02:32]} 8. h3 {[%emt 0:05:11]} Be8 {[%emt 0:00:40]} 9. c3 {[%emt 0:01:09]} c6 {[%emt 0:02:53]} 10. Ne5 {[%emt 0:01:00]} Nbd7 {[%emt 0:00:21]} 11. Ndf3 {[%emt 0:00:05]} Bh5 {[%emt 0:01:28]} 12. Qb3 {[%emt 0:02:39]} Qb6 {[%emt 0:01:02]} 13. Ng5 {[%emt 0:01:13]} Nxe5 {[%emt 0:03:37]} 14. dxe5 {[%emt 0:02:43]} Ne4 {[%emt 0:00:39]} 15. Nxe6 {[%emt 0:01:05]} Rf7 {[%emt 0:02:11]} 16. Bxe4 {[%emt 0:01:32]} fxe4 {[%emt 0:00:22]} 17. g4 {[%emt 0:02:40]} Bg6 {[%emt 0:00:36]} 18. Rfd1 {[%emt 0:02:39]} Bh4 {[%emt 0:01:19]} 19. Nd4 {[%emt 0:04:27]} Qd8 {[%emt 0:01:17]} 20. c4 {[%emt 0:02:06]} h5 {[%emt 0:06:22]} 21. cxd5 {[%emt 0:00:51]} hxg4 {[%emt 0:01:07]} 22. Ne6 {[%emt 0:00:25]} Bxf2+ {[%emt 0:00:32]} 23. Kxf2 {[%emt 0:01:30]} Qh4+ {[%emt 0:00:18]} 24. Ke2 {[%emt 0:01:21]} cxd5 {[%emt 0:06:32]} 25. Rxd5 {[%emt 0:02:18]} Bh5 {[%emt 0:00:04]} 26. Ng5 {[%emt 0:02:38]} gxh3+ {[%emt 0:02:04]} 27. Kd2 {[%emt 0:00:29]} Qf2+ {[%emt 0:01:09]} 28. Kc3 {[%emt 0:00:09]} a5 {[%emt 0:03:21]} 29. Rc5 {[%emt 0:06:12]} Rd8 {[%emt 0:00:39]} 30. Nxe4 {[%emt 0:01:20]} Qe2 {[%emt 0:04:00]} 31. Nd6 {[%emt 0:00:34]} Kf8 {[%emt 0:00:48]} 32. Qc4 {[%emt 0:08:53]} Qg2 {[%emt 0:04:21]} 33. Rc8 {[%emt 0:00:56]} Rfd7 {[%emt 0:06:58]} 34. e6 {[%emt 0:00:37]} Bg6 {[%emt 0:00:40]} 35. Rc1 {[%emt 0:01:22]} b5 {[%emt 0:00:28]} 36. Qc5 {[%emt 0:01:55]} b4+ {[%emt 0:00:55]} 37. Kb3 {[%emt 0:00:25]} a4+ {[%emt 0:00:09]} 38. Kxa4 1-0

[Event "Karpov Trophy XVI 2018"]
[Site "Cap d/^Agde"]
[Date "2018.10.28"]
[Round "2.1"]
[White "Maruf Ibne, Alif"]
[Black "Jehan, Julien"]
[Result "0-1"]
[ECO "E59"]
[WhiteElo "1847"]
[BlackElo "1991"]
[Annotator "NA RC"]
[PlyCount "136"]
[EventDate "2018.10.17"]
[EventCountry "FRA"]
[SourceTitle "playchess.com"]
[Source "ChessBase"]
[SourceQuality "1"]
[TimeControl "5400+30"]

1. d4 {[%emt 0:00:00]} Nf6 {[%emt 0:00:00]} 2. c4 {[%emt 0:00:00]} e6 {[%emt 0:00:00]} 3. Nc3 {[%emt 0:00:00]} Bb4 {[%emt 0:00:27]} 4. e3 {[%emt 0:00:02]} d5 {[%emt 0:01:14]} 5. Bd3 {[%emt 0:01:16]} c5 {[%emt 0:03:31]} 6. Nf3 {[%emt 0:00:45]} dxc4 {[%emt 0:03:25]} 7. Bxc4 {[%emt 0:00:36]} Nc6 {[%emt 0:04:18]} 8. O-O {[%emt 0:02:19]} O-O {[%emt 0:02:08]} 9. a3 {[%emt 0:00:55]} Bxc3 {[%emt 0:04:43]} 10. bxc3 {[%emt 0:00:04]} Qc7 {[%emt 0:03:43]} 11. Ba2 {[%emt 0:00:50]} Rd8 {[%emt 0:04:01]} 12. h3 {[%emt 0:05:14] E59: Nimzo-Indian: Rubinstein: Main Line: 7...Nc6 8 a3 Bxc3 9 bxc3 dxc4} (12. Bb2 h6 13. Qe2 e5 14. h3 Qe7 15. Rfd1 Bf5 (15... e4 16. Nh2 Bf5 17. a4 cxd4 18. exd4 Nd5 19. Bxd5 Rxd5 {0-1 (36) Johansson,V (2179)-Terao,J (2187) Istanbul 2012}) 16. Rac1 Rac8 17. d5 Nb8 18. c4 Nbd7 19. Nh4 Bh7 {0-1 (58) Akash Pc,I (2390)-Donchenko,A (2569) London 2017}) 12... h6 {[%emt 0:01:00]} 13. Bb2 {[%emt 0:01:10]} b5 $146 {[%emt 0:06:18]} 14. Qe2 {[%emt 0:02:45]} c4 {[%emt 0:02:50]} 15. a4 {[%emt 0:06:43]} a6 {[%emt 0:01:23]} 16. e4 {[%emt 0:03:53]} e5 {[%emt 0:02:53]} 17. d5 {[%emt 0:01:23]} Ne7 {[%emt 0:01:47]} 18. Kh2 $2 {[%emt 0:08:13] [#]} (18. Bb1 $14 {stays ahead.}) 18... Ng6 $2 {[%emt 0:01:59]} ({Black should try} 18... Nexd5 $1 $17 {[%mdl 512]} 19. exd5 e4+ 20. d6 Rxd6) 19. g3 {[%emt 0:01:16]} Nd7 {[%emt 0:13:14]} 20. Bb1 {[%emt 0:07:06]} Rb8 {[%emt 0:02:29]} 21. Nd2 {[%emt 0:16:29]} Nc5 {[%emt 0:02:46]} 22. axb5 {[%emt 0:06:03]} axb5 {[%emt 0:03:08]} 23. Bc2 {[%emt 0:00:30]} Qd7 {[%emt 0:01:36]} 24. Qh5 {[%emt 0:03:11]} Qc7 {[%emt 0:03:30]} 25. Ba3 {[%emt 0:02:24]} Bd7 {[%emt 0:02:41]} (25... Rd6 $14) 26. Bb4 {[%emt 0:05:45]} Ra8 {[%emt 0:00:55]} 27. Rfb1 {[%emt 0:00:33]} Rdb8 {[%emt 0:01:53]} 28. Qe2 {[%emt 0:02:16]} Qc8 {[%emt 0:07:58]} 29. Qh5 {[%emt 0:01:36]} Qc7 {[%emt 0:02:32]} 30. Qe2 {[%emt 0:00:41]} Na6 {[%emt 0:00:19]} 31. Ba5 {[%emt 0:02:28]} Qc8 {[%emt 0:01:15]} 32. Qf1 {[%emt 0:01:40]} Qc5 {[%emt 0:02:38]} 33. Kg2 {[%emt 0:06:25]} Rf8 {[%emt 0:04:00]} 34. Qe2 {[%emt 0:01:40]} Qd6 {[%emt 0:03:47]} 35. Qe3 {[%emt 0:01:57]} Ne7 {[%emt 0:00:38]} 36. Qb6 {[%emt 0:01:09]} Qxb6 {[%emt 0:02:08]} 37. Bxb6 {[%emt 0:00:06]} Rfb8 {[%emt 0:01:35]} 38. Be3 {[%emt 0:01:49]} Nc8 {[%emt 0:00:48]} 39. Rb2 {[%emt 0:01:20]} Nc7 {[%emt 0:01:04]} 40. Rab1 {[%emt 0:02:12]} Nd6 {[%emt 0:01:50]} 41. Bc5 {[%emt 0:01:34]} Nb7 $1 $11 {[%emt 0:00:01]} 42. Be3 {[%emt 0:01:26]} Nd6 {[%emt 0:01:09]} (42... Rc8) 43. Bc5 {[%emt 0:00:05]} Nce8 {[%emt 0:00:50]} 44. Bd1 {[%emt 0:01:47]} Rc8 {[%emt 0:00:24]} 45. Bb4 {[%emt 0:00:52]} Ra6 {[%emt 0:00:20]} (45... Nb7 $11) 46. Bc2 {[%emt 0:01:05]} (46. f4 $16) 46... Rca8 {[%emt 0:00:10]} 47. Nf3 {[%emt 0:00:33]} f6 {[%emt 0:00:10]} 48. Ne1 {[%emt 0:00:31]} Ra1 $16 {[%emt 0:00:31]} (48... f5 $11 {keeps the balance.}) 49. Nf3 {[%emt 0:00:16]} (49. f4 $14) 49... R8a2 {[%emt 0:00:24]} 50. Bc5 {[%emt 0:01:03]} Nb7 {[%emt 0:01:24]} 51. Bb4 {[%emt 0:00:31]} Nc7 {[%emt 0:00:30]} 52. Rxa1 {[%emt 0:00:47]} Rxa1 {[%emt 0:00:20]} 53. Bb1 {[%emt 0:00:18]} Na6 {[%emt 0:00:52]} 54. Nd2 {[%emt 0:00:48]} Nbc5 {[%emt 0:00:32]} 55. Ra2 {[%emt 0:00:32]} Rxa2 {[%emt 0:00:16]} 56. Bxa2 {[%emt 0:00:08]} Nxb4 {[%emt 0:00:15]} 57. cxb4 {[%emt 0:00:01]} Nd3 {[%emt 0:00:28]} 58. Bb1 {[%emt 0:01:07]} Nxb4 {[%emt 0:00:09]} 59. h4 {[%emt 0:00:20]} c3 {[%emt 0:00:20]} 60. Nb3 {[%emt 0:00:24]} c2 {[%emt 0:00:14]} 61. Bxc2 {[%emt 0:00:01]} Nxc2 {[%emt 0:00:05]} 62. Nc5 Be8 {[%emt 0:00:50]} 63. d6 {[%emt 0:00:14]} b4 {[%emt 0:00:46]} 64. Kf1 {[%emt 0:00:25]} Bb5+ {[%emt 0:00:22]} 65. Kg2 {[%emt 0:00:17]} Nd4 {[%emt 0:00:37]} 66. f4 {[%emt 0:00:32]} b3 {[%emt 0:00:32]} 67. Nd3 {[%emt 0:00:06]} Bxd3 {[%emt 0:00:39]} 68. d7 {[%emt 0:00:11]} Nc6 {[%emt 0:00:09]} 0-1

[Event "Karpov Trophy XVI 2018"]
[Site "Cap d/^Agde"]
[Date "2018.10.28"]
[Round "3.1"]
[White "Malakhatko, Vadim"]
[Black "Cotonnec, Melkior"]
[Result "1-0"]
[ECO "D94"]
[WhiteElo "2552"]
[BlackElo "2322"]
[Annotator "RC"]
[PlyCount "63"]
[EventDate "2018.10.17"]
[EventCountry "FRA"]
[SourceTitle "playchess.com"]
[Source "ChessBase"]
[SourceQuality "1"]
[TimeControl "5400+30"]

1. d4 {[%emt 0:00:00]} Nf6 {[%emt 0:00:00]} 2. c4 {[%emt 0:00:00]} g6 {[%emt 0:00:07]} 3. Nc3 {[%emt 0:00:00]} d5 {[%emt 0:00:08]} 4. Nf3 {[%emt 0:00:29]} Bg7 {[%emt 0:00:04]} 5. e3 {[%emt 0:00:07]} O-O {[%emt 0:01:35]} 6. Bd2 {[%emt 0:00:12]} b6 {[%emt 0:24:38]} 7. cxd5 {[%emt 0:05:16]} Nxd5 {[%emt 0:00:47]} 8. Rc1 {[%emt 0:00:34]} Nxc3 {[%emt 0:06:52]} 9. Bxc3 {[%emt 0:04:15]} Bb7 {[%emt 0:00:32]} 10. b4 {[%emt 0:13:08]} Nd7 {[%emt 0:01:21]} 11. Bb5 {[%emt 0:00:10]} a6 {[%emt 0:04:46]} 12. Ba4 {[%emt 0:00:50]} Bd5 {[%emt 0:18:13]} 13. Qe2 {[%emt 0:07:09]} Nf6 {[%emt 0:17:43]} 14. O-O {[%emt 0:01:01]} Ne4 {[%emt 0:00:42]} 15. Be1 {[%emt 0:00:00]} Qd6 {[%emt 0:02:53]} 16. Bc2 {[%emt 0:10:38]} Rfc8 {[%emt 0:00:59]} 17. Bd3 {[%emt 0:00:24]} Bb7 {[%emt 0:02:34]} 18. Qc2 {[%emt 0:06:55]} f5 {[%emt 0:00:36]} 19. Ne5 {[%emt 0:14:12]} Bxe5 {[%emt 0:02:19]} 20. dxe5 {[%emt 0:00:37]} Qxe5 {[%emt 0:00:08]} 21. f3 {[%emt 0:00:22]} Nf6 {[%emt 0:03:56]} 22. Bg3 {[%emt 0:15:34]} Qe6 {[%emt 0:06:16]} 23. e4 {[%emt 0:00:43]} fxe4 {[%emt 0:00:43]} 24. fxe4 {[%emt 0:00:07]} Kg7 {[%emt 0:02:02]} 25. Qb2 {[%emt 0:01:13]} b5 {[%emt 0:01:40]} 26. Rc5 {[%emt 0:01:37]} Rd8 {[%emt 0:00:39]} 27. Bb1 {[%emt 0:03:04]} Rd7 {[%emt 0:00:33]} 28. Re5 {[%emt 0:00:34]} Qb6+ {[%emt 0:00:32]} 29. Bf2 {[%emt 0:00:15]} Qc6 {[%emt 0:00:40]} 30. Bc5 {[%emt 0:02:06]} Re8 {[%emt 0:00:31]} 31. a3 {[%emt 0:00:27]} e6 {[%emt 0:00:28]} 32. Rxf6 {[%emt 0:01:39]} 1-0

[Event "Karpov Trophy XVI 2018"]
[Site "Cap d/^Agde"]
[Date "2018.10.28"]
[Round "3.1"]
[White "Guehtar, Sofiane"]
[Black "Berthelot, Yannick"]
[Result "1/2-1/2"]
[ECO "B06"]
[WhiteElo "2064"]
[BlackElo "2236"]
[Annotator "NA"]
[PlyCount "106"]
[EventDate "2018.10.17"]
[EventCountry "FRA"]
[SourceTitle "playchess.com"]
[Source "ChessBase"]
[SourceQuality "1"]
[TimeControl "5400+30"]

1. e4 {[%emt 0:00:00]} g6 {[%emt 0:02:44]} 2. d4 Bg7 {[%emt 0:00:03]} 3. Nc3 {[%emt 0:00:00]} d6 {[%emt 0:00:06]} 4. g3 {[%emt 0:00:00]} Nd7 {[%emt 0:02:36]} 5. Nge2 {[%emt 0:00:18]} e5 {[%emt 0:00:50]} 6. Bg2 {[%emt 0:00:17]} Ngf6 {[%emt 0:02:22]} 7. h3 {[%emt 0:00:45]} O-O {[%emt 0:01:57]} 8. O-O {[%emt 0:00:35]} Re8 {[%emt 0:02:53]} 9. Re1 {[%emt 0:02:13]} exd4 {[%emt 0:08:24]} 10. Nxd4 {[%emt 0:00:05]} Nc5 {[%emt 0:01:22]} 11. f4 {[%emt 0:09:36]} Nh5 {[%emt 0:07:02]} 12. g4 {[%emt 0:13:36]} Nf6 {[%emt 0:11:09]} 13. b4 {[%emt 0:17:30]} Ne6 {[%emt 0:13:20]} 14. Be3 {[%emt 0:07:35]} Nxd4 {[%emt 0:07:15]} 15. Bxd4 {[%emt 0:00:08]} c5 {[%emt 0:00:50]} 16. bxc5 {[%emt 0:06:00]} dxc5 {[%emt 0:00:06]} 17. Bxc5 {[%emt 0:07:03]} Qc7 {[%emt 0:15:02]} 18. Qd6 {[%emt 0:00:41]} Qxd6 {[%emt 0:00:43]} 19. Bxd6 {[%emt 0:00:07]} Nxg4 {[%emt 0:03:27]} 20. e5 {[%emt 0:00:55]} Nh6 {[%emt 0:04:11]} 21. Nd5 {[%emt 0:00:33]} Rd8 {[%emt 0:00:32]} 22. Nc7 {[%emt 0:12:56]} Rb8 {[%emt 0:01:07]} 23. Ne8 {[%emt 0:00:38]} Ra8 {[%emt 0:03:59]} 24. Nxg7 {[%emt 0:00:10]} Kxg7 {[%emt 0:00:06]} 25. Be7 {[%emt 0:00:05]} Re8 {[%emt 0:01:18]} 26. Bf6+ {[%emt 0:00:07]} Kg8 {[%emt 0:00:09]} 27. c4 {[%emt 0:01:19]} Rb8 {[%emt 0:02:54]} 28. c5 {[%emt 0:00:21]} Bd7 {[%emt 0:00:32]} 29. Red1 {[%emt 0:01:51]} Bc6 {[%emt 0:00:51]} 30. Bxc6 {[%emt 0:02:08]} bxc6 {[%emt 0:00:05]} 31. Rab1 {[%emt 0:00:15]} Nf5 {[%emt 0:01:17]} 32. Rxb8 {[%emt 0:00:45]} Rxb8 {[%emt 0:00:05]} 33. Rd7 {[%emt 0:00:17]} a6 {[%emt 0:00:35]} 34. Rc7 {[%emt 0:00:14]} Nd4 {[%emt 0:01:34]} 35. Kf2 {[%emt 0:01:39]} Ne6 {[%emt 0:00:51]} 36. Rxc6 {[%emt 0:00:26]} Nxf4 {[%emt 0:00:03]} 37. Rb6 {[%emt 0:00:24]} Rc8 {[%emt 0:02:56]} 38. c6 {[%emt 0:02:30]} Nd5 {[%emt 0:00:43]} 39. Rb7 {[%emt 0:01:18]} h6 {[%emt 0:00:35]} 40. c7 {[%emt 0:06:45]} Nxc7 {[%emt 0:01:35]} 41. Ra7 {[%emt 0:00:21]} Nd5 {[%emt 0:01:08]} 42. Rxa6 {[%emt 0:00:03]} Nxf6 {[%emt 0:00:35]} 43. exf6 {[%emt 0:00:04]} Kh7 {[%emt 0:00:29]} 44. Ra7 {[%emt 0:01:19]} Kg8 {[%emt 0:00:06]} 45. Ra6 {[%emt 0:00:59]} Kh7 {[%emt 0:00:06]} 46. h4 {[%emt 0:01:20]} h5 {[%emt 0:01:46]} 47. Rd6 {[%emt 0:02:21]} Ra8 {[%emt 0:00:24]} 48. a3 {[%emt 0:02:30]} Rxa3 {[%emt 0:00:06]} 49. Rd7 {[%emt 0:00:10]} Kg8 {[%emt 0:00:09]} 50. Rd8+ {[%emt 0:00:03]} Kh7 {[%emt 0:00:05]} 51. Rd7 {[%emt 0:00:07]} Ra2+ {[%emt 0:01:05]} 52. Kf3 {[%emt 0:01:17]} Ra3+ {[%emt 0:01:05]} 53. Kg2 {[%emt 0:00:22]} Kg8 {[%emt 0:00:21]} 1/2-1/2

[Event "Karpov Trophy XVI 2018"]
[Site "Cap d/^Agde"]
[Date "2018.10.28"]
[Round "3.1"]
[White "Jehan, Julien"]
[Black "Liegeois, Valentin"]
[Result "1-0"]
[ECO "B08"]
[WhiteElo "1991"]
[BlackElo "1810"]
[Annotator "NA"]
[PlyCount "75"]
[EventDate "2018.10.17"]
[EventCountry "FRA"]
[SourceTitle "playchess.com"]
[Source "ChessBase"]
[SourceQuality "1"]
[TimeControl "5400+30"]

1. d4 {[%emt 0:00:00]} Nf6 {[%emt 0:00:00]} 2. Nf3 {[%emt 0:00:00]} g6 {[%emt 0:00:00]} 3. Nc3 {[%emt 0:00:06]} Bg7 {[%emt 0:00:00]} 4. e4 {[%emt 0:00:20]} d6 {[%emt 0:00:26]} 5. Be3 {[%emt 0:00:49]} c6 {[%emt 0:07:56]} 6. h3 {[%emt 0:02:26]} b5 {[%emt 0:03:10]} 7. Bd3 {[%emt 0:00:42]} Qa5 {[%emt 0:04:28]} 8. O-O {[%emt 0:01:57]} O-O {[%emt 0:00:48]} 9. Qd2 {[%emt 0:03:08]} Bb7 {[%emt 0:02:57]} 10. Rfe1 {[%emt 0:04:19]} Nbd7 {[%emt 0:02:06]} 11. e5 {[%emt 0:05:13]} Ne8 {[%emt 0:03:11]} 12. Bg5 {[%emt 0:09:04]} f6 {[%emt 0:02:40]} 13. exf6 {[%emt 0:03:28]} exf6 {[%emt 0:01:26]} 14. Bf4 {[%emt 0:01:55]} Qb6 {[%emt 0:07:15]} 15. a4 {[%emt 0:09:42]} a6 {[%emt 0:03:33]} 16. Re7 {[%emt 0:03:48]} Qd8 {[%emt 0:05:29]} 17. Rae1 {[%emt 0:01:51]} b4 {[%emt 0:10:26]} 18. Nd1 {[%emt 0:02:44]} a5 {[%emt 0:06:23]} 19. Bh6 {[%emt 0:02:26]} Rb8 {[%emt 0:06:31]} 20. Bxg7 {[%emt 0:03:29]} Nxg7 {[%emt 0:00:20]} 21. Qh6 {[%emt 0:00:52]} Rf7 {[%emt 0:00:58]} 22. Rxf7 {[%emt 0:03:10]} Kxf7 {[%emt 0:00:04]} 23. Qxh7 {[%emt 0:01:00]} Nf8 {[%emt 0:00:13]} 24. Qh6 {[%emt 0:01:24]} Bc8 {[%emt 0:04:27]} 25. Nh4 {[%emt 0:04:52]} g5 {[%emt 0:01:10]} 26. Ng6 {[%emt 0:03:08]} Nf5 {[%emt 0:12:26]} 27. Bxf5 {[%emt 0:05:48]} Bxf5 {[%emt 0:01:25]} 28. Re7+ {[%emt 0:01:46]} Qxe7 {[%emt 0:00:45]} 29. Nxe7 {[%emt 0:00:13]} Kxe7 {[%emt 0:00:09]} 30. Qg7+ {[%emt 0:01:27]} Ke6 {[%emt 0:03:12]} 31. Qc7 {[%emt 0:00:36]} Nd7 {[%emt 0:04:20]} 32. Ne3 {[%emt 0:00:36]} Be4 {[%emt 0:00:45]} 33. Nc4 {[%emt 0:01:21]} Ke7 {[%emt 0:02:02]} 34. Qxd6+ {[%emt 0:01:25]} Kd8 {[%emt 0:00:31]} 35. Nxa5 {[%emt 0:01:19]} Rb6 {[%emt 0:00:52]} 36. Nc4 {[%emt 0:02:02]} Ra6 {[%emt 0:00:21]} 37. a5 {[%emt 0:01:56]} Bxc2 {[%emt 0:02:16]} 38. Nb6 {[%emt 0:02:53]} 1-0

[Event "Karpov Trophy XVI 2018"]
[Site "Cap d/^Agde"]
[Date "2018.10.29"]
[Round "4"]
[White "Goix, Theo"]
[Black "Jehan, Julien"]
[Result "1/2-1/2"]
[ECO "A45"]
[WhiteElo "2068"]
[BlackElo "1991"]
[Annotator "NA"]
[PlyCount "82"]
[EventDate "2018.10.27"]
[EventCountry "FRA"]
[SourceTitle "playchess.com"]
[Source "ChessBase"]
[SourceQuality "1"]
[TimeControl "5400+30"]

1. d4 {[%emt 0:00:00]} Nf6 {[%emt 0:00:00]} 2. Bf4 {[%emt 0:00:00]} e6 {[%emt 0:00:26]} 3. e3 {[%emt 0:00:06]} d5 {[%emt 0:00:59]} 4. Nf3 {[%emt 0:00:20]} Bd6 {[%emt 0:02:36]} 5. Bxd6 {[%emt 0:05:48]} Qxd6 {[%emt 0:00:31]} 6. Nbd2 {[%emt 0:00:17]} Nbd7 {[%emt 0:05:34] LiveBook: 7 Games} 7. Bd3 {[%emt 0:03:56]} e5 {[%emt 0:06:00]} 8. dxe5 {[%emt 0:04:31]} Nxe5 {[%emt 0:00:16]} 9. Nxe5 {[%emt 0:03:59]} Qxe5 {[%emt 0:00:11]} 10. c3 {[%emt 0:01:30]} O-O {[%emt 0:04:26]} 11. h3 {[%emt 0:05:51]} c5 {[%emt 0:05:38]} 12. Nf3 {[%emt 0:12:34]} Qe7 {[%emt 0:01:41]} 13. O-O {[%emt 0:02:31]} Bd7 {[%emt 0:01:46]} 14. Re1 {[%emt 0:03:40] D02: 1 d4 d5 2 Nf3 sidelines, including 2...Nf6 3 g3 and 2...Nf6 3 Bf4} (14. Qe2 Rfe8 15. Bb5 Rad8 16. Rad1 h6 17. Rfe1 {½-½ (17) Lerch,P (2334)-Colpe,M (2411) Germany 2017}) 14... Bc6 {[%emt 0:08:57]} 15. Qe2 $146 {[%emt 0:04:23]} ({Predecessor:} 15. Rc1 Rad8 16. Bb1 Rfe8 17. Qc2 Ne4 18. Re2 Qf6 19. Nd2 Qh4 20. Nf3 Qh5 21. Kh2 Bd7 {0-1 (35) Wagner,G-Reinhold,K Recklinghausen 2000}) 15... a6 {[%emt 0:04:43]} 16. Rad1 {[%emt 0:03:57]} Rad8 {[%emt 0:03:30]} 17. Bb1 {[%emt 0:02:03]} Ne4 {[%emt 0:03:14]} 18. Qc2 {[%emt 0:04:33]} b5 {[%emt 0:03:43]} 19. Nh2 {[%emt 0:04:41]} f5 {[%emt 0:05:41]} 20. Qe2 {[%emt 0:03:43]} Rf6 {[%emt 0:03:10]} 21. Nf1 $15 {[%emt 0:02:59]} Qf7 {[%emt 0:05:55]} 22. Nd2 {[%emt 0:05:39]} Nxd2 {[%emt 0:05:04]} 23. Rxd2 {[%emt 0:02:23]} Re8 {[%emt 0:03:01]} 24. Qd3 {[%emt 0:03:32]} g6 {[%emt 0:01:37]} 25. Rde2 {[%emt 0:01:12]} Kg7 {[%emt 0:03:27]} 26. a4 {[%emt 0:03:17]} Qb7 {[%emt 0:02:59]} 27. a5 {[%emt 0:02:31]} b4 {[%emt 0:01:19]} 28. Qd1 {[%emt 0:05:26]} Rfe6 {[%emt 0:04:27]} 29. Ba2 {[%emt 0:02:00]} Rd6 {[%emt 0:03:53]} 30. Rd2 {[%emt 0:01:35]} d4 {[%emt 0:03:08]} 31. f3 {[%emt 0:00:48]} Red8 {[%emt 0:03:11]} 32. exd4 {[%emt 0:00:35]} Qd7 {[%emt 0:01:01]} 33. d5 {[%emt 0:02:20]} Bxd5 {[%emt 0:00:53]} 34. Bxd5 {[%emt 0:00:08]} Rxd5 {[%emt 0:00:11]} 35. Rxd5 {[%emt 0:00:06]} Qxd5 {[%emt 0:00:09]} 36. Qxd5 {[%emt 0:00:58]} Rxd5 {[%emt 0:00:01]} 37. Re6 {[%emt 0:00:23]} Rd2 {[%emt 0:03:06]} 38. cxb4 {[%emt 0:01:01]} cxb4 {[%emt 0:00:10]} 39. Rxa6 {[%emt 0:00:25]} Rxb2 {[%emt 0:00:02]} 40. Rb6 {[%emt 0:00:49]} Ra2 {[%emt 0:02:34]} 41. Rxb4 {[%emt 0:00:49]} Rxa5 {[%emt 0:00:36]} 1/2-1/2

[Event "Karpov Trophy XVI 2018"]
[Site "Cap d/^Agde"]
[Date "2018.10.29"]
[Round "4"]
[White "Baudin, Frederic"]
[Black "Molano, Juan Pablo"]
[Result "0-1"]
[ECO "D30"]
[WhiteElo "2021"]
[BlackElo "2142"]
[Annotator "NA"]
[PlyCount "70"]
[EventDate "2018.10.27"]
[EventCountry "FRA"]
[SourceTitle "playchess.com"]
[Source "ChessBase"]
[SourceQuality "1"]
[TimeControl "5400+30"]

1. d4 {[%emt 0:02:52]} d5 {[%emt 0:00:00]} 2. c4 {[%emt 0:00:10]} e6 {[%emt 0:00:00]} 3. Nf3 {[%emt 0:00:07]} f5 {[%emt 0:00:00]} 4. g3 {[%emt 0:00:18]} Nf6 {[%emt 0:00:00]} 5. Bg2 {[%emt 0:00:13]} c6 {[%emt 0:00:00]} 6. O-O {[%emt 0:00:28]} Bd6 {[%emt 0:00:00] LiveBook: 2557 Partien} 7. b3 {[%emt 0:00:32]} Qe7 {[%emt 0:00:00]} 8. Nc3 {[%emt 0:00:42]} O-O {[%emt 0:00:00]} 9. Ne5 {[%emt 0:01:54] A90: Dutch Defence: Miscellaneous and Modern Stonewall (with ...Bd6)} (9. Bb2 b6 10. Rc1 Bb7 11. e3 Nbd7 12. Ne2 Ne4 13. Nf4 Rac8 14. Ne5 Rfd8 15. Nxd7 Rxd7 16. f3 Nf6 17. Qd2 c5 18. cxd5 Nxd5 19. Nxd5 Bxd5 {1-0 (71) Ragger,M (2687)-Johannessen,L (2487) Minsk 2015}) 9... Nbd7 {[%emt 0:01:44]} 10. Bf4 {[%emt 0:02:49]} Ne4 {[%emt 0:01:03]} 11. Nxe4 {[%emt 0:01:52]} fxe4 {[%emt 0:00:07]} 12. f3 $146 {[%emt 0:03:01]} ({Predecessor:} 12. Qd2 Nxe5 13. dxe5 Bb4 14. Qc1 Ba3 15. Bg5 Qc5 16. Be3 Qe7 {0-1 (58) Radulski,J (2493)-Sedlak,N (2524) Pancevo 2003}) 12... Nxe5 {[%emt 0:29:58]} 13. Bxe5 {[%emt 0:00:39]} Bxe5 {[%emt 0:02:11]} 14. dxe5 {[%emt 0:00:09]} Qc5+ {[%emt 0:00:29]} 15. Kh1 {[%emt 0:00:43]} exf3 {[%emt 0:00:30]} 16. Rxf3 {[%emt 0:02:25]} Bd7 {[%emt 0:01:51]} 17. Qd3 {[%emt 0:04:35]} Rxf3 {[%emt 0:08:30]} 18. exf3 {[%emt 0:01:18]} Be8 {[%emt 0:00:48]} 19. cxd5 {[%emt 0:04:38]} cxd5 {[%emt 0:02:39]} 20. Bh3 {[%emt 0:06:19]} Bd7 {[%emt 0:01:13]} 21. b4 {[%emt 0:02:44]} Qc7 {[%emt 0:04:12]} 22. f4 {[%emt 0:02:44]} g6 {[%emt 0:00:38]} 23. Re1 $15 {[%emt 0:02:06]} Rc8 {[%emt 0:00:26]} 24. Re2 {[%emt 0:03:42]} Qc3 {[%emt 0:04:21]} 25. Qxc3 {[%emt 0:02:39]} Rxc3 {[%emt 0:00:05]} 26. Kg2 {[%emt 0:00:09]} Kf7 {[%emt 0:00:46]} 27. Kf2 {[%emt 0:00:06]} Bb5 {[%emt 0:01:08]} 28. Rd2 {[%emt 0:00:30]} Rc1 {[%emt 0:00:45]} 29. Bg2 {[%emt 0:01:46]} Rb1 {[%emt 0:01:22]} 30. a3 {[%emt 0:01:01]} Ra1 {[%emt 0:00:50]} 31. Rc2 {[%emt 0:00:03]} Bc4 {[%emt 0:01:16]} 32. Rc3 {[%emt 0:01:27]} Ra2+ {[%emt 0:00:31]} 33. Kg1 {[%emt 0:00:06]} b5 {[%emt 0:00:40]} 34. g4 {[%emt 0:00:33]} d4 {[%emt 0:03:14]} 35. Rf3 {[%emt 0:01:58]} d3 0-1